[Event "Late-Titled-Tuesday-Blitz-June-25-2024"]
[Site "Chess.com"]
[Date "2024.06.25"]
[Round "1"]
[White "bazar-wokzal"]
[Black "SujanaLohani"]
[Result "1/2-1/2"]
[WhiteElo "2597"]
[BlackElo "2278"]
[TimeControl "180+1"]
[EndTime "14:07:54 PDT"]
[Termination "Game drawn - insufficient material"]

1. e4 {[%clk 0:02:59.1]} 1... c5 {[%clk 0:02:57.6]} 2. c3 {[%clk 0:02:57]} 2...
Nf6 {[%clk 0:02:56.3]} 3. e5 {[%clk 0:02:56.6]} 3... Nd5 {[%clk 0:02:55.7]} 4.
d4 {[%clk 0:02:56.1]} 4... cxd4 {[%clk 0:02:55.3]} 5. cxd4 {[%clk 0:02:56.4]}
5... Nc6 {[%clk 0:02:54.4]} 6. Nc3 {[%clk 0:02:55.8]} 6... Nxc3 {[%clk
0:02:40.8]} 7. bxc3 {[%clk 0:02:56.7]} 7... d6 {[%clk 0:02:40.5]} 8. f4 {[%clk
0:02:56.7]} 8... dxe5 {[%clk 0:02:38.8]} 9. fxe5 {[%clk 0:02:56.6]} 9... Bf5
{[%clk 0:02:39]} 10. Nf3 {[%clk 0:02:54.4]} 10... e6 {[%clk 0:02:38.4]} 11. Bd3
{[%clk 0:02:54.5]} 11... Bxd3 {[%clk 0:02:35.4]} 12. Qxd3 {[%clk 0:02:54.1]}
12... Be7 {[%clk 0:02:36]} 13. O-O {[%clk 0:02:53.2]} 13... O-O {[%clk
0:02:36.5]} 14. Rb1 {[%clk 0:02:49.5]} 14... b6 {[%clk 0:02:36.3]} 15. Rb2
{[%clk 0:02:42.1]} 15... Rc8 {[%clk 0:02:34.4]} 16. Rbf2 {[%clk 0:02:41.1]}
16... Na5 {[%clk 0:02:33.4]} 17. h4 {[%clk 0:02:31.7]} 17... h6 {[%clk
0:02:29.9]} 18. h5 {[%clk 0:02:19.6]} 18... Qc7 {[%clk 0:02:25.2]} 19. Bd2
{[%clk 0:02:18.3]} 19... Qc4 {[%clk 0:02:21.3]} 20. Qe4 {[%clk 0:02:14.7]} 20...
Qc6 {[%clk 0:02:15.6]} 21. Qg4 {[%clk 0:02:14]} 21... Kh8 {[%clk 0:02:15]} 22.
Nh2 {[%clk 0:02:04.2]} 22... Qe8 {[%clk 0:02:04.1]} 23. Qg3 {[%clk 0:01:54.8]}
23... f5 {[%clk 0:01:54.7]} 24. exf6 {[%clk 0:01:54.6]} 24... Bxf6 {[%clk
0:01:53.9]} 25. Ng4 {[%clk 0:01:46.6]} 25... Qxh5 {[%clk 0:01:47.5]} 26. Nxf6
{[%clk 0:01:45.4]} 26... gxf6 {[%clk 0:01:48.4]} 27. Rxf6 {[%clk 0:01:41.1]}
27... Rxf6 {[%clk 0:01:48.3]} 28. Rxf6 {[%clk 0:01:40.3]} 28... Rg8 {[%clk
0:01:48.5]} 29. Qf3 {[%clk 0:00:45.2]} 29... Qxf3 {[%clk 0:01:47.2]} 30. Rxh6+
{[%clk 0:00:43.4]} 30... Kg7 {[%clk 0:01:44.9]} 31. gxf3 {[%clk 0:00:44]} 31...
Nc4 {[%clk 0:01:45]} 32. Bc1 {[%clk 0:00:43.7]} 32... e5 {[%clk 0:01:42.9]} 33.
Kf2 {[%clk 0:00:35.5]} 33... exd4 {[%clk 0:01:42.6]} 34. cxd4 {[%clk 0:00:35.3]}
34... Rd8 {[%clk 0:01:42.6]} 35. Rh4 {[%clk 0:00:32.5]} 35... Nd6 {[%clk
0:01:42.3]} 36. Bf4 {[%clk 0:00:27.6]} 36... Nf5 {[%clk 0:01:41.9]} 37. Be5+
{[%clk 0:00:27.9]} 37... Kg6 {[%clk 0:01:37]} 38. Rg4+ {[%clk 0:00:26.9]} 38...
Kf7 {[%clk 0:01:36.5]} 39. Ke2 {[%clk 0:00:25]} 39... Rc8 {[%clk 0:01:28.3]} 40.
Kd3 {[%clk 0:00:24.7]} 40... Rc1 {[%clk 0:01:28.7]} 41. Ke4 {[%clk 0:00:23.3]}
41... Ne7 {[%clk 0:01:29.1]} 42. Rg7+ {[%clk 0:00:16.7]} 42... Ke6 {[%clk
0:01:21.2]} 43. Rh7 {[%clk 0:00:17.1]} 43... Re1+ {[%clk 0:01:18.5]} 44. Kd3
{[%clk 0:00:17.3]} 44... Ra1 {[%clk 0:01:16.4]} 45. Rh2 {[%clk 0:00:11.3]} 45...
Nd5 {[%clk 0:01:12.7]} 46. Re2 {[%clk 0:00:10.7]} 46... Nb4+ {[%clk 0:01:07]}
47. Kc4 {[%clk 0:00:10.6]} 47... Rxa2 {[%clk 0:01:07.5]} 48. Rxa2 {[%clk
0:00:10.3]} 48... Nxa2 {[%clk 0:01:07.7]} 49. Bf4 {[%clk 0:00:09.7]} 49... a5
{[%clk 0:00:57.6]} 50. d5+ {[%clk 0:00:09.6]} 50... Kd7 {[%clk 0:00:55.8]} 51.
Bd2 {[%clk 0:00:09.7]} 51... a4 {[%clk 0:00:47.7]} 52. f4 {[%clk 0:00:10.2]}
52... Kd6 {[%clk 0:00:40]} 53. f5 {[%clk 0:00:10.4]} 53... b5+ {[%clk
0:00:40.4]} 54. Kxb5 {[%clk 0:00:10.2]} 54... Kxd5 {[%clk 0:00:40.3]} 55. f6
{[%clk 0:00:07.9]} 55... Ke6 {[%clk 0:00:38.6]} 56. Kxa4 {[%clk 0:00:08.2]}
56... Kxf6 {[%clk 0:00:35.3]} 1/2-1/2

[Event "Late-Titled-Tuesday-Blitz-June-25-2024"]
[Site "Chess.com"]
[Date "2024.06.25"]
[Round "1"]
[White "medinapazmiguel1968"]
[Black "Arystanner"]
[Result "0-1"]
[WhiteElo "2468"]
[BlackElo "2819"]
[TimeControl "180+1"]
[EndTime "14:07:55 PDT"]
[Termination "Arystanner won by resignation"]

1. d4 {[%clk 0:02:59.7]} 1... d5 {[%clk 0:02:59.2]} 2. c4 {[%clk 0:03:00]} 2...
e6 {[%clk 0:02:59.3]} 3. Nf3 {[%clk 0:02:59.4]} 3... a6 {[%clk 0:02:58.9]} 4. c5
{[%clk 0:02:58.2]} 4... b6 {[%clk 0:02:58.6]} 5. cxb6 {[%clk 0:02:58]} 5... cxb6
{[%clk 0:02:59.2]} 6. Nc3 {[%clk 0:02:58.3]} 6... Bd6 {[%clk 0:02:59.7]} 7. Bg5
{[%clk 0:02:57.2]} 7... Nf6 {[%clk 0:02:51.8]} 8. e3 {[%clk 0:02:55.8]} 8... O-O
{[%clk 0:02:51.7]} 9. Bd3 {[%clk 0:02:56]} 9... Bb7 {[%clk 0:02:50.7]} 10. O-O
{[%clk 0:02:55.9]} 10... Nbd7 {[%clk 0:02:50.6]} 11. Rc1 {[%clk 0:02:55.3]}
11... h6 {[%clk 0:02:50.2]} 12. Bh4 {[%clk 0:02:54.7]} 12... Rc8 {[%clk
0:02:46.5]} 13. a4 {[%clk 0:02:46.1]} 13... Be7 {[%clk 0:02:35.2]} 14. Qe2
{[%clk 0:02:43.9]} 14... Ra8 {[%clk 0:02:25.6]} 15. Rfd1 {[%clk 0:02:41.4]}
15... Ne4 {[%clk 0:02:24.9]} 16. Bxe7 {[%clk 0:02:39.2]} 16... Qxe7 {[%clk
0:02:22.5]} 17. Nd2 {[%clk 0:02:34]} 17... Nd6 {[%clk 0:02:18.3]} 18. f3 {[%clk
0:02:23.9]} 18... e5 {[%clk 0:02:17.7]} 19. dxe5 {[%clk 0:02:19.3]} 19... Nxe5
{[%clk 0:02:18.6]} 20. Nb3 {[%clk 0:02:05.5]} 20... Rfe8 {[%clk 0:02:10.1]} 21.
Re1 {[%clk 0:01:41.6]} 21... Ndc4 {[%clk 0:02:05.5]} 22. Nd4 {[%clk 0:01:28.2]}
22... Nxd3 {[%clk 0:01:59.7]} 23. Qxd3 {[%clk 0:01:27.7]} 23... Nxb2 {[%clk
0:02:00]} 24. Qf5 {[%clk 0:01:17.2]} 24... Rad8 {[%clk 0:01:59.7]} 25. Kf2
{[%clk 0:00:48.1]} 25... Nc4 {[%clk 0:01:51.9]} 26. Qd3 {[%clk 0:00:41.8]} 26...
Qe5 {[%clk 0:01:51.4]} 27. f4 {[%clk 0:00:41]} 27... Qf6 {[%clk 0:01:50]} 28. g3
{[%clk 0:00:40.3]} 28... Rc8 {[%clk 0:01:42.5]} 29. Qf5 {[%clk 0:00:37.3]} 29...
Nxe3 {[%clk 0:01:37]} 30. Qxf6 {[%clk 0:00:26.7]} 30... Ng4+ {[%clk 0:01:37.1]}
31. Kf3 {[%clk 0:00:27.4]} 31... Nxf6 {[%clk 0:01:37.9]} 32. Rxe8+ {[%clk
0:00:26.1]} 32... Nxe8 {[%clk 0:01:35.8]} 33. Ke3 {[%clk 0:00:24.6]} 33... Nd6
{[%clk 0:01:35.9]} 34. Kd3 {[%clk 0:00:24.3]} 34... Ne4 {[%clk 0:01:35.5]} 35.
Nde2 {[%clk 0:00:23.3]} 35... Nc5+ {[%clk 0:01:26.2]} 36. Ke3 {[%clk 0:00:21]}
36... Bc6 {[%clk 0:01:23.5]} 37. Rb1 {[%clk 0:00:20.1]} 37... Re8+ {[%clk
0:01:08.5]} 38. Kf2 {[%clk 0:00:19.7]} 38... Nxa4 {[%clk 0:01:02]} 39. Nxa4
{[%clk 0:00:19.2]} 39... Bxa4 {[%clk 0:01:02.6]} 40. Rxb6 {[%clk 0:00:19.7]}
40... Bb5 {[%clk 0:01:01.1]} 41. Nd4 {[%clk 0:00:19.4]} 41... Bc4 {[%clk
0:01:01.4]} 42. Nf5 {[%clk 0:00:17.7]} 42... Re2+ {[%clk 0:00:59.6]} 43. Kg1
{[%clk 0:00:14.7]} 43... a5 {[%clk 0:00:57.9]} 44. Rb8+ {[%clk 0:00:14.3]} 44...
Kh7 {[%clk 0:00:58]} 45. Ra8 {[%clk 0:00:14.9]} 45... Ra2 {[%clk 0:00:57.1]} 46.
h4 {[%clk 0:00:14.4]} 46... h5 {[%clk 0:00:56.9]} 47. Nd6 {[%clk 0:00:10.4]}
47... Kg6 {[%clk 0:00:52.8]} 48. Ra7 {[%clk 0:00:10.9]} 48... f5 {[%clk
0:00:24]} 49. Nf7 {[%clk 0:00:07.8]} 49... Kf6 {[%clk 0:00:23.6]} 50. Ne5 {[%clk
0:00:07.4]} 50... a4 {[%clk 0:00:21]} 51. Rf7+ {[%clk 0:00:06.3]} 51... Ke6
{[%clk 0:00:21.6]} 52. Rxg7 {[%clk 0:00:06.8]} 52... a3 {[%clk 0:00:22.2]} 53.
g4 {[%clk 0:00:05.3]} 53... hxg4 {[%clk 0:00:21.7]} 54. h5 {[%clk 0:00:05.3]}
54... Rb2 {[%clk 0:00:21.2]} 55. Rg6+ {[%clk 0:00:05]} 55... Ke7 {[%clk
0:00:21.2]} 56. Rg7+ {[%clk 0:00:05.7]} 56... Kd6 {[%clk 0:00:21.7]} 57. Rg6+
{[%clk 0:00:05.9]} 57... Kc5 {[%clk 0:00:22.1]} 58. Nd7+ {[%clk 0:00:06.6]}
58... Kd4 {[%clk 0:00:22.3]} 59. h6 {[%clk 0:00:06.2]} 59... a2 {[%clk
0:00:22.7]} 60. Ra6 {[%clk 0:00:01.7]} 60... Bxa6 {[%clk 0:00:22]} 0-1

[Event "Late-Titled-Tuesday-Blitz-June-25-2024"]
[Site "Chess.com"]
[Date "2024.06.25"]
[Round "1"]
[White "chessdoll90"]
[Black "LiemLe"]
[Result "0-1"]
[WhiteElo "2516"]
[BlackElo "3023"]
[TimeControl "180+1"]
[EndTime "14:07:56 PDT"]
[Termination "LiemLe won on time"]

1. d4 {[%clk 0:02:58.6]} 1... Nf6 {[%clk 0:02:59.6]} 2. Nf3 {[%clk 0:02:57.9]}
2... g6 {[%clk 0:03:00]} 3. g3 {[%clk 0:02:57.9]} 3... Bg7 {[%clk 0:02:59.1]} 4.
Bg2 {[%clk 0:02:57.7]} 4... d6 {[%clk 0:02:59.7]} 5. c4 {[%clk 0:02:57.3]} 5...
O-O {[%clk 0:02:59.1]} 6. Nc3 {[%clk 0:02:57.3]} 6... Nc6 {[%clk 0:02:57.6]} 7.
O-O {[%clk 0:02:56.8]} 7... e5 {[%clk 0:02:57.7]} 8. Bg5 {[%clk 0:02:43.5]} 8...
h6 {[%clk 0:02:50.6]} 9. Bxf6 {[%clk 0:02:43.3]} 9... Bxf6 {[%clk 0:02:46.3]}
10. e3 {[%clk 0:02:42.6]} 10... Bg4 {[%clk 0:02:25]} 11. d5 {[%clk 0:02:27.2]}
11... Ne7 {[%clk 0:02:21.1]} 12. Qd2 {[%clk 0:02:17.9]} 12... Bg7 {[%clk
0:02:19.3]} 13. Ne1 {[%clk 0:02:12.3]} 13... Bd7 {[%clk 0:02:18.3]} 14. b4
{[%clk 0:02:05.1]} 14... a5 {[%clk 0:02:16.8]} 15. b5 {[%clk 0:01:58.4]} 15...
b6 {[%clk 0:02:16.5]} 16. a4 {[%clk 0:01:54.5]} 16... f5 {[%clk 0:02:10.2]} 17.
f4 {[%clk 0:01:42.1]} 17... Kh7 {[%clk 0:01:41]} 18. Nf3 {[%clk 0:01:41.8]}
18... e4 {[%clk 0:01:16.3]} 19. Nd4 {[%clk 0:01:41.6]} 19... Ng8 {[%clk
0:01:15.3]} 20. Rad1 {[%clk 0:01:26.7]} 20... Nf6 {[%clk 0:01:14.2]} 21. h3
{[%clk 0:01:25.2]} 21... Qe7 {[%clk 0:01:14.3]} 22. Qf2 {[%clk 0:01:23.8]} 22...
Rae8 {[%clk 0:01:12.8]} 23. Nce2 {[%clk 0:01:22]} 23... Bc8 {[%clk 0:01:07.8]}
24. Nc6 {[%clk 0:01:21.4]} 24... Qf7 {[%clk 0:01:03.1]} 25. Ned4 {[%clk
0:01:21.3]} 25... Nd7 {[%clk 0:00:46.9]} 26. Ne6 {[%clk 0:01:18.1]} 26... Rxe6
{[%clk 0:00:47.1]} 27. dxe6 {[%clk 0:01:18.5]} 27... Qxe6 {[%clk 0:00:48]} 28.
Qe2 {[%clk 0:01:14.4]} 28... Nc5 {[%clk 0:00:47.9]} 29. Qc2 {[%clk 0:00:56.6]}
29... Qf7 {[%clk 0:00:45.5]} 30. Nd4 {[%clk 0:00:50.2]} 30... Re8 {[%clk
0:00:41.6]} 31. Rd2 {[%clk 0:00:46.9]} 31... Bd7 {[%clk 0:00:33.8]} 32. Rc1
{[%clk 0:00:45.7]} 32... Kh8 {[%clk 0:00:25.1]} 33. Qd1 {[%clk 0:00:45.4]} 33...
Re7 {[%clk 0:00:22.9]} 34. Bf1 {[%clk 0:00:45.2]} 34... g5 {[%clk 0:00:17.8]}
35. Rg2 {[%clk 0:00:43.6]} 35... Bf6 {[%clk 0:00:16.5]} 36. Be2 {[%clk
0:00:43.2]} 36... Qg7 {[%clk 0:00:16.2]} 37. Kh2 {[%clk 0:00:34.8]} 37... Re8
{[%clk 0:00:15.2]} 38. Kh1 {[%clk 0:00:34.1]} 38... Rg8 {[%clk 0:00:14.9]} 39.
Kh2 {[%clk 0:00:34.3]} 39... gxf4 {[%clk 0:00:14.9]} 40. g4 {[%clk 0:00:17]}
40... f3 {[%clk 0:00:12.4]} 41. Nxf3 {[%clk 0:00:16]} 41... exf3 {[%clk
0:00:13.3]} 42. Bxf3 {[%clk 0:00:16.5]} 42... Qe7 {[%clk 0:00:12.4]} 43. Qe2
{[%clk 0:00:14.1]} 43... Nxa4 {[%clk 0:00:09.1]} 44. Rcg1 {[%clk 0:00:11.3]}
44... Nc3 {[%clk 0:00:08.6]} 45. Qd3 {[%clk 0:00:10.8]} 45... Qe5+ {[%clk
0:00:08.2]} 46. Kh1 {[%clk 0:00:10.6]} 46... Ne4 {[%clk 0:00:08.7]} 47. Bxe4
{[%clk 0:00:10.3]} 47... fxe4 {[%clk 0:00:09.6]} 48. Qe2 {[%clk 0:00:10.1]}
48... Bh4 {[%clk 0:00:09.3]} 49. Rf1 {[%clk 0:00:10.2]} 49... Be6 {[%clk
0:00:09.9]} 50. Qc2 {[%clk 0:00:05.4]} 50... Re8 {[%clk 0:00:08.7]} 51. Qe2
{[%clk 0:00:01]} 51... a4 {[%clk 0:00:08.4]} 52. Qc2 {[%clk 0:00:01.1]} 52... a3
{[%clk 0:00:08.9]} 53. Qb3 {[%clk 0:00:01.2]} 53... Ra8 {[%clk 0:00:08.8]} 54.
Qa2 {[%clk 0:00:01]} 54... Bf6 {[%clk 0:00:07.6]} 0-1

[Event "Late-Titled-Tuesday-Blitz-June-25-2024"]
[Site "Chess.com"]
[Date "2024.06.25"]
[Round "1"]
[White "SimplyDevina"]
[Black "xakevicius91"]
[Result "1/2-1/2"]
[WhiteElo "2317"]
[BlackElo "2608"]
[TimeControl "180+1"]
[EndTime "14:07:56 PDT"]
[Termination "Game drawn by repetition"]

1. d4 {[%clk 0:03:00.9]} 1... Nf6 {[%clk 0:02:46.3]} 2. c4 {[%clk 0:02:59.6]}
2... e6 {[%clk 0:02:34.8]} 3. Nc3 {[%clk 0:02:58.6]} 3... Bb4 {[%clk 0:02:29]}
4. Nf3 {[%clk 0:02:57.1]} 4... b6 {[%clk 0:02:26.5]} 5. g3 {[%clk 0:02:55.3]}
5... Bb7 {[%clk 0:02:24.6]} 6. Bg2 {[%clk 0:02:55.4]} 6... O-O {[%clk
0:02:23.1]} 7. O-O {[%clk 0:02:55.4]} 7... Bxc3 {[%clk 0:02:22.8]} 8. bxc3
{[%clk 0:02:55.4]} 8... d6 {[%clk 0:02:23.7]} 9. Bg5 {[%clk 0:02:51.7]} 9...
Nbd7 {[%clk 0:02:23]} 10. Nd2 {[%clk 0:02:47]} 10... Bxg2 {[%clk 0:02:22.1]} 11.
Kxg2 {[%clk 0:02:47.9]} 11... h6 {[%clk 0:02:22.2]} 12. Bxf6 {[%clk 0:02:47.6]}
12... Nxf6 {[%clk 0:02:21.9]} 13. e4 {[%clk 0:02:45.9]} 13... Qe7 {[%clk
0:02:22.4]} 14. Qe2 {[%clk 0:02:44.1]} 14... e5 {[%clk 0:02:22.8]} 15. d5 {[%clk
0:02:38.7]} 15... Rae8 {[%clk 0:02:19.9]} 16. a4 {[%clk 0:02:19.1]} 16... a5
{[%clk 0:02:19.2]} 17. Nf3 {[%clk 0:02:10.5]} 17... g6 {[%clk 0:02:09.2]} 18. h3
{[%clk 0:01:56.6]} 18... Kg7 {[%clk 0:02:08.7]} 19. g4 {[%clk 0:01:41.2]} 19...
Nh7 {[%clk 0:02:04.7]} 20. Rg1 {[%clk 0:01:27.4]} 20... f5 {[%clk 0:01:58.9]}
21. gxf5 {[%clk 0:01:14.3]} 21... gxf5 {[%clk 0:01:59.8]} 22. Kh2+ {[%clk
0:01:09.7]} 22... Kh8 {[%clk 0:01:59.3]} 23. Rg2 {[%clk 0:00:54.5]} 23... fxe4
{[%clk 0:01:53.9]} 24. Nd2 {[%clk 0:00:41.5]} 24... Qh4 {[%clk 0:01:39.1]} 25.
Nxe4 {[%clk 0:00:35.7]} 25... Rf4 {[%clk 0:01:38.5]} 26. f3 {[%clk 0:00:28.3]}
26... Ng5 {[%clk 0:01:38.3]} 27. Nxg5 {[%clk 0:00:27.3]} 27... hxg5 {[%clk
0:01:37.3]} 28. Rag1 {[%clk 0:00:27.2]} 28... Rg8 {[%clk 0:01:35.5]} 29. Rg4
{[%clk 0:00:24.3]} 29... Qh6 {[%clk 0:01:31]} 30. Qg2 {[%clk 0:00:23.4]} 30...
Rf5 {[%clk 0:01:27.7]} 31. h4 {[%clk 0:00:19.6]} 31... Rg6 {[%clk 0:01:25.7]}
32. Rh1 {[%clk 0:00:17.1]} 32... Qf8 {[%clk 0:00:56.5]} 33. hxg5 {[%clk
0:00:16.1]} 33... Rxf3 {[%clk 0:00:53.3]} 34. Kg1+ {[%clk 0:00:16.5]} 34... Kg7
{[%clk 0:00:52.3]} 35. Rgh4 {[%clk 0:00:11.7]} 35... Qf5 {[%clk 0:00:43.8]} 36.
Rh7+ {[%clk 0:00:11.4]} 36... Kf8 {[%clk 0:00:43.1]} 37. Rh8+ {[%clk 0:00:11.2]}
37... Rg8 {[%clk 0:00:43.3]} 38. Rxg8+ {[%clk 0:00:08.4]} 38... Kxg8 {[%clk
0:00:44.2]} 39. g6 {[%clk 0:00:08.6]} 39... Qf4 {[%clk 0:00:41.4]} 40. Rh3
{[%clk 0:00:06.7]} 40... Qe3+ {[%clk 0:00:37.2]} 41. Kh2 {[%clk 0:00:06.1]}
41... Rxh3+ {[%clk 0:00:34.9]} 42. Qxh3 {[%clk 0:00:04.6]} 42... Qxh3+ {[%clk
0:00:35.2]} 43. Kxh3 {[%clk 0:00:05.5]} 43... Kg7 {[%clk 0:00:35.5]} 44. Kh4
{[%clk 0:00:03.1]} 44... Kh6 {[%clk 0:00:35.2]} 45. g7 {[%clk 0:00:01.6]} 45...
Kxg7 {[%clk 0:00:35.7]} 46. Kg5 {[%clk 0:00:02.4]} 46... Kf7 {[%clk 0:00:35.5]}
47. Kf5 {[%clk 0:00:03]} 47... Ke7 {[%clk 0:00:35.3]} 48. Kg5 {[%clk 0:00:02.4]}
48... Kf7 {[%clk 0:00:32.6]} 49. Kf5 {[%clk 0:00:02.8]} 49... Kg7 {[%clk
0:00:33.3]} 50. Kg5 {[%clk 0:00:03.1]} 50... Kh7 {[%clk 0:00:21.5]} 51. Kh5
{[%clk 0:00:02.2]} 51... e4 {[%clk 0:00:21.4]} 52. Kg4 {[%clk 0:00:02.7]} 52...
Kg6 {[%clk 0:00:21.2]} 53. Kf4 {[%clk 0:00:03.2]} 53... e3 {[%clk 0:00:20.5]}
54. Kxe3 {[%clk 0:00:03.4]} 54... Kg5 {[%clk 0:00:21.1]} 55. Kf3 {[%clk
0:00:02]} 55... Kf5 {[%clk 0:00:20.5]} 56. Ke3 {[%clk 0:00:02.5]} 56... Kg4
{[%clk 0:00:18.7]} 57. Ke4 {[%clk 0:00:02.8]} 57... Kg5 {[%clk 0:00:19]} 58. Ke3
{[%clk 0:00:02.4]} 58... Kg4 {[%clk 0:00:18.4]} 59. Ke4 {[%clk 0:00:02.7]} 59...
Kg3 {[%clk 0:00:19.1]} 60. Ke3 {[%clk 0:00:03.2]} 60... Kg4 {[%clk 0:00:18.7]}
1/2-1/2

[Event "Late-Titled-Tuesday-Blitz-June-25-2024"]
[Site "Chess.com"]
[Date "2024.06.25"]
[Round "1"]
[White "BlackBoarder"]
[Black "albayo"]
[Result "1-0"]
[WhiteElo "2699"]
[BlackElo "2402"]
[TimeControl "180+1"]
[EndTime "14:08:00 PDT"]
[Termination "BlackBoarder won on time"]

1. d4 {[%clk 0:03:00.9]} 1... Nf6 {[%clk 0:02:57.3]} 2. Nc3 {[%clk 0:02:58.2]}
2... d5 {[%clk 0:02:52.7]} 3. Bf4 {[%clk 0:02:58]} 3... a6 {[%clk 0:02:47.3]} 4.
Nf3 {[%clk 0:02:55.5]} 4... Bf5 {[%clk 0:02:45.7]} 5. e3 {[%clk 0:02:55.3]} 5...
h6 {[%clk 0:02:44.8]} 6. Bd3 {[%clk 0:02:52.4]} 6... Bxd3 {[%clk 0:02:43.8]} 7.
cxd3 {[%clk 0:02:53.3]} 7... e6 {[%clk 0:02:38.8]} 8. Qb3 {[%clk 0:02:51.9]}
8... b5 {[%clk 0:02:37]} 9. Rc1 {[%clk 0:02:42.7]} 9... Nbd7 {[%clk 0:02:31.3]}
10. O-O {[%clk 0:02:39.3]} 10... c5 {[%clk 0:02:24.3]} 11. dxc5 {[%clk 0:02:29]}
11... Nxc5 {[%clk 0:02:25.2]} 12. Qc2 {[%clk 0:02:29.6]} 12... Rc8 {[%clk
0:02:21.6]} 13. Qe2 {[%clk 0:02:24.8]} 13... Bd6 {[%clk 0:02:15.4]} 14. Bxd6
{[%clk 0:02:04.8]} 14... Qxd6 {[%clk 0:02:15.1]} 15. d4 {[%clk 0:02:05.4]} 15...
b4 {[%clk 0:01:43.1]} 16. Na4 {[%clk 0:01:35.4]} 16... Nfd7 {[%clk 0:01:31.9]}
17. Nxc5 {[%clk 0:01:32.8]} 17... Nxc5 {[%clk 0:01:32.3]} 18. dxc5 {[%clk
0:01:32.8]} 18... Rxc5 {[%clk 0:01:33.2]} 19. Rxc5 {[%clk 0:01:31]} 19... Qxc5
{[%clk 0:01:34.1]} 20. Qxa6 {[%clk 0:01:29.5]} 20... O-O {[%clk 0:01:34.6]} 21.
Qd3 {[%clk 0:01:28.1]} 21... Ra8 {[%clk 0:01:33.4]} 22. Qb3 {[%clk 0:01:26.1]}
22... Qa5 {[%clk 0:01:30.3]} 23. Ra1 {[%clk 0:01:25.2]} 23... Rc8 {[%clk
0:01:28.6]} 24. h3 {[%clk 0:01:25]} 24... Rc4 {[%clk 0:01:25.5]} 25. Nd4 {[%clk
0:01:17.8]} 25... Qc5 {[%clk 0:01:20.5]} 26. Rd1 {[%clk 0:01:11]} 26... g6
{[%clk 0:01:18]} 27. Qd3 {[%clk 0:01:07.9]} 27... Kg7 {[%clk 0:01:15.9]} 28. g3
{[%clk 0:01:05]} 28... Qa5 {[%clk 0:01:12.4]} 29. a3 {[%clk 0:00:59.5]} 29...
bxa3 {[%clk 0:01:11.6]} 30. Qxa3 {[%clk 0:00:59.3]} 30... Qb6 {[%clk 0:01:04.9]}
31. b3 {[%clk 0:00:54.9]} 31... Rc7 {[%clk 0:00:56.6]} 32. Ra1 {[%clk
0:00:52.8]} 32... e5 {[%clk 0:00:54.6]} 33. Nf3 {[%clk 0:00:50.9]} 33... Qf6
{[%clk 0:00:53.9]} 34. Kg2 {[%clk 0:00:43.4]} 34... Rc2 {[%clk 0:00:42.2]} 35.
Ra2 {[%clk 0:00:43.3]} 35... Rc6 {[%clk 0:00:39]} 36. Qb2 {[%clk 0:00:42.9]}
36... Re6 {[%clk 0:00:39]} 37. Ra5 {[%clk 0:00:41.3]} 37... d4 {[%clk
0:00:35.5]} 38. exd4 {[%clk 0:00:40]} 38... e4 {[%clk 0:00:36.1]} 39. Ne5 {[%clk
0:00:39.7]} 39... h5 {[%clk 0:00:31.1]} 40. Qe2 {[%clk 0:00:37.2]} 40... Qf5
{[%clk 0:00:29.1]} 41. Nc4 {[%clk 0:00:36.9]} 41... Qf6 {[%clk 0:00:26.9]} 42.
d5 {[%clk 0:00:37.2]} 42... Re8 {[%clk 0:00:22.6]} 43. d6 {[%clk 0:00:36.5]}
43... h4 {[%clk 0:00:22.1]} 44. g4 {[%clk 0:00:33.9]} 44... Qe6 {[%clk
0:00:18.6]} 45. Qb2+ {[%clk 0:00:32.9]} 45... Kh7 {[%clk 0:00:18.2]} 46. Qd4
{[%clk 0:00:32.7]} 46... Rd8 {[%clk 0:00:15.3]} 47. Re5 {[%clk 0:00:32.4]} 47...
Qf6 {[%clk 0:00:13.7]} 48. Qxe4 {[%clk 0:00:32.4]} 48... Qg7 {[%clk 0:00:12.2]}
49. g5 {[%clk 0:00:31.8]} 49... Qf8 {[%clk 0:00:11.9]} 50. Re7 {[%clk 0:00:29]}
50... Kg8 {[%clk 0:00:09.8]} 51. Qe5 {[%clk 0:00:27.8]} 51... Qg7 {[%clk
0:00:09.3]} 52. Qxg7+ {[%clk 0:00:27.6]} 52... Kxg7 {[%clk 0:00:10.2]} 53. b4
{[%clk 0:00:26.5]} 53... Kf8 {[%clk 0:00:09.8]} 54. b5 {[%clk 0:00:25.9]} 54...
Rb8 {[%clk 0:00:10.1]} 55. b6 {[%clk 0:00:26]} 55... Rc8 {[%clk 0:00:10.7]} 56.
b7 {[%clk 0:00:25.8]} 56... Rb8 {[%clk 0:00:11.6]} 57. Ne5 {[%clk 0:00:25.6]}
57... f6 {[%clk 0:00:11.4]} 58. Nd7+ {[%clk 0:00:25.4]} 58... Kg8 {[%clk
0:00:11.3]} 59. Nxb8 {[%clk 0:00:25.5]} 59... fxg5 {[%clk 0:00:11.6]} 60. Nc6
{[%clk 0:00:25.7]} 1-0